Cogmind - Beta 15 @@@ ROGUE MODE // 2025.09.15 @ 14:21:50 Player: Runagate Result: Self-destructed Performance ------------- Evolutions (1) 500 Regions Visited (3) 600 Robots Destroyed (21) 105 Value Destroyed (188) 188 Prototype IDs (2) 40 Alien Tech Used (0) 0 Bonus (25) 25 TOTAL SCORE: 1458 Bonus ------- Follower Combat Kills 25 Cogmind --------- Core Integrity 400/400 Matter 227/300 Energy 125/125 System Corruption 0% Temperature Cool (0) Movement Rolling (95) Ox1 Location -9/Materials Parts ------- > --- POWER (1) -------- Light Ion Engine > --- PROPULSION (3) --- Wheel Wheel > --- UTILITY (3) ------ Large Storage Unit Structural Scanner > --- WEAPON (2) ------- Assault Rifle Hammer > --- INVENTORY (15) --- Light Ion Engine Light Ion Engine Light Ion Engine Wheel Wheel Small Storage Unit Medium Matter Pod (100) EM Pulse Gun Medium Laser Light Assault Rifle Signal Generator Peak State ------------ > --- POWER ------------ Light Ion Engine > --- PROPULSION ------- Wheel Wheel > --- UTILITY ---------- Large Storage Unit Structural Scanner > --- WEAPON ----------- Light Assault Rifle Mining Laser > --- INVENTORY -------- Light Ion Engine Light Ion Engine Wheel Wheel Wheel Wheel Small Storage Unit Medium Matter Pod EM Pulse Gun Medium Laser [Rating: 8] Favorites ----------- Power Light Ion Engine Engine Light Ion Engine Propulsion Wheel Wheel Wheel Utility Large Storage Unit Device Structural Scanner Storage Large Storage Unit Weapon Light Assault Rifle Energy Gun Medium Laser Ballistic Gun Light Assault Rifle Special Weapon Mining Laser Impact Weapon Hammer Build | -11 -10 -10 -9 ------- Run | Yrd Mat Min Mat Slots Evolved 2 | . . . 2 Power . | . . . . Propulsion 1 | . . . 1 Utility 1 | . . . 1 Weapon . | . . . . Parts Attached 16 | 6 10 . . Power 2 | 1 1 . . Engine 2 | 1 1 . . Core . | . . . . Reactor . | . . . . Propulsion 6 | 2 4 . . Treads . | . . . . Leg . | . . . . Wheel 6 | 2 4 . . Hover . | . . . . Flight . | . . . . Utility 3 | 1 2 . . Device 1 | . 1 . . Storage 2 | 1 1 . . Processor . | . . . . Hackware . | . . . . Protection . | . . . . Artifact . | . . . . Weapon 5 | 2 3 . . Energy Gun 1 | 1 . . . Energy Cannon . | . . . . Ballistic Gun 2 | 1 1 . . Ballistic Cannon . | . . . . Launcher . | . . . . Special Weapon 1 | . 1 . . Impact Weapon 1 | . 1 . . Slashing Weapon . | . . . . Piercing Weapon . | . . . . Special Melee Weapon . | . . . . Unidentified Prototypes . | . . . . Parts Lost 1 | . 1 . . Power . | . . . . Propulsion . | . . . . Utility . | . . . . Weapon 1 | . 1 . . Highest Loss Streak 1 | . 1 . . To Critical Strikes . | . . . . Average Backups 8 | 2 9 10 10 Power 2 | . 2 3 3 Propulsion 2 | 1 3 2 2 Utility 1 | . 1 2 2 Weapon 1 | . 2 3 3 Tool/Special . | . . . . Unused Backups 7 | 1 . . 6 Power 3 | 1 . . 2 Propulsion 2 | . . . 2 Utility 1 | . . . 1 Weapon 1 | . . . 1 Tool/Special . | . . . . Average Slot Usage (%) 91 | . 92 100 77 Engine 13 | . 14 14 11 Wheel 27 | . 28 28 22 Device 9 | . 9 14 11 Storage 13 | . 14 14 11 Energy Gun 4 | . 5 . . Ballistic Gun 13 | . 14 14 11 Special Weapon 1 | . 2 . . Impact Weapon 5 | . 3 14 11 Peak Build Rating 8 | 6 8 8 8 Average Rating 6 | 5 7 8 8 On Entrance 5 | . 6 8 8 Naked Turns . | . . . . Heaviest Build 28 | 11 28 28 28 Greatest Support 32 | 20 32 20 20 Greatest Overweight (x) 1 | . 1 1 1 Average Overweight (x) . | . . 1 1 Largest Inventory Capacity 15 | 8 15 15 15 Average Capacity 12 | 7 12 15 15 Most Carried 14 | 7 14 11 11 Average Carried 8 | 3 9 10 11 Final Capacity 15 | 8 15 15 15 Final Carried 11 | 7 10 11 11 Class Distribution -------------------- 100% | Mutant Dominant Class ---------------- Mutant | -10/Materials Mutant | -10/Mines Mutant | -9/Materials Resources | -11 -10 -10 -9 ----------- Run | Yrd Mat Min Mat Matter Collected 517 | 280 237 . . Remotely . | . . . . Salvage Created 414 | 194 220 . . Parts 35 | 12 23 . . Haulers Intercepted . | . . . . Recyclers Shooed . | . . . . Parts Field Recycled . | . . . . Retrieved Matter . | . . . . Parts Self-Destructed . | . . . . Prevented . | . . . . Kills | -11 -10 -10 -9 ------- Run | Yrd Mat Min Mat Combat Hostiles Destroyed 7 | . 7 . . Guns 7 | . 7 . . Classes Destroyed 7 | 3 4 . . Worker 5 | 2 3 . . Tunneler 5 | 5 . . . Recycler 1 | 1 . . . Operator 1 | . 1 . . Watcher 2 | . 2 . . Swarmer 6 | . 6 . . Grunt 1 | . 1 . . Best Kill Streak 3 | 3 3 . . Combat Bots Only 3 | . 3 . . Max Kills in Single Turn 1 | 1 1 . . Gunslinging . | . . . . Exploded . | . . . . Melee . | . . . . Uniques/NPCs Destroyed . | . . . . Combat | -11 -10 -10 -9 -------- Run | Yrd Mat Min Mat Hostile Shots Fired 41 | . 41 . . Missed 9 | . 9 . . Hits 32 | . 32 . . Projectile 32 | . 32 . . Damage Taken 261 | . 261 . . Core 33 | . 33 . . Absorbed by Shields . | . . . . Core Remaining (%) 93 | 100 . 86 . Volleys Fired 65 | 20 45 . . Largest 2 | 2 2 . . Hottest 120 | 70 120 . . Shots Fired 93 | 40 53 . . Gun 87 | 40 47 . . Cannon . | . . . . Launcher . | . . . . Special 6 | . 6 . . Kinetic 65 | 20 45 . . Thermal 28 | 20 8 . . Explosive . | . . . . Electromagnetic . | . . . . Robot Hit Streak 8 | 7 8 . . Robot Miss Streak 4 | 2 4 . . Penetration Max . | . . . . Secondary Targets . | . . . . Shots Hit Robots 61 | 29 32 . . Core Hits 29 | 12 17 . . Critical Kills . | . . . . Critical Parts Destroyed 1 | 1 . . . Critical Strikes 2 | 2 . . . Burn 1 | 1 . . . Destroy 1 | 1 . . . Melee Attacks . | . . . . Impact . | . . . . Slashing . | . . . . Piercing . | . . . . Sneak Attacks . | . . . . Combat Hostiles . | . . . . Follow-up Attacks . | . . . . Damage Inflicted 691 | 296 395 . . Guns 667 | 296 371 . . Cannons . | . . . . Explosions . | . . . . Melee . | . . . . Ramming . | . . . . Kinetic 453 | 106 347 . . Thermal 238 | 190 48 . . Explosive . | . . . . Electromagnetic . | . . . . Impact . | . . . . Slashing . | . . . . Piercing . | . . . . Highest Corruption . | . . . . Average Corruption . | . . . . Corruption Purged . | . . . . Corruption Blocked . | . . . . Overload Shots . | . . . . Overflow Damage 4 | . 4 . . Projectiles 4 | . 4 . . Explosions . | . . . . Melee . | . . . . Knockbacks . | . . . . Impact . | . . . . Kinetic . | . . . . Secondary . | . . . . Self-Inflicted Damage . | . . . . Shots . | . . . . Rammed . | . . . . Targets Rammed . | . . . . Kicked . | . . . . Crushed . | . . . . Highest Temperature 130 | 130 100 . . Average Temperature 45 | 50 37 . . Received Heat Transfer 24 | . 24 . . Siege Activations . | . . . . Martial Activations . | . . . . Shielding Activations . | . . . . Robots Disrupted . | . . . . Combat Hostiles . | . . . . Robots Corrupted . | . . . . Combat Hostiles . | . . . . Parts Fried . | . . . . Impact Corruptions . | . . . . Robots Melted . | . . . . Combat Hostiles . | . . . . Parts Melted . | . . . . Heat Transferred 753 | 629 124 . . Parts Sabotaged . | . . . . Parts Stolen . | . . . . Parts Stripped . | . . . . Power Chain Reactions . | . . . . Alert | -11 -10 -10 -9 ------- Run | Yrd Mat Min Mat Maximum Alert Level . | . . . . Low Security (%) 100 | 100 100 100 100 Level 1 . | . . . . Level 2 . | . . . . Level 3 . | . . . . Level 4 . | . . . . Level 5 . | . . . . High Security . | . . . . Max Security . | . . . . Peak Influence 109 | 10 109 34 9 Initial 34 | . 3 34 9 Average 28 | 2 40 22 3 Influence Increases 298 | 40 237 21 . Destroy 0b10 Robot/C 160 | . 140 20 . Destroy 0b10 Robot/NC 70 | 40 30 . . Destroy Leader 34 | . 34 . . Allied During Kill 1 | . . 1 . Successful Hack 14 | . 14 . . Destroy Structure 4 | . 4 . . Lose Combat Pursuer 15 | . 15 . . Influence Decreases 298 | 35 153 85 25 Entered New Map 73 | . 2 55 16 Time Decay 215 | 35 141 30 9 Lost Part 10 | . 10 . . Squads Dispatched 2 | . 1 1 . Investigation 1 | . 1 . . Extermination . | . . . . Reinforcement . | . . . . Assault 1 | . . 1 . Garrison . | . . . . Intercept . | . . . . Searches Triggered . | . . . . Construction Impeded . | . . . . Haulers Reinforced . | . . . . Active Scanning Responses . | . . . . Cargo Convoy Interrupts . | . . . . Stealth | -11 -10 -10 -9 --------- Run | Yrd Mat Min Mat Distress Signals . | . . . . Communications Jammed . | . . . . Distress Signals . | . . . . Times Spotted 16 | . 14 2 . Peak Tracking Total 5 | . 5 2 . Tactical Retreats 1 | . 1 . . Traps | -11 -10 -10 -9 ------- Run | Yrd Mat Min Mat Traps Triggered 1 | . 1 . . Indirectly . | . . . . Trap Hack Attempts . | . . . . Triggered . | . . . . Disarmed . | . . . . Reprogrammed . | . . . . Reused . | . . . . Traps Extracted . | . . . . Installed . | . . . . Triggered . | . . . . Machines | -11 -10 -10 -9 ---------- Run | Yrd Mat Min Mat Machines Disabled . | . . . . Max in Single Turn . | . . . . Machines Repaired . | . . . . Machines Dismantled . | . . . . Machines Sabotaged . | . . . . Overloaded Fab Kills . | . . . . Hacking | -11 -10 -10 -9 --------- Run | Yrd Mat Min Mat Machines Accessed 2 | . 2 . . Terminals 2 | . 2 . . Fabricators . | . . . . Repair Stations . | . . . . Recycling Units . | . . . . Scanalyzers . | . . . . Garrison Access . | . . . . Total Hacks 5 | . 5 . . Successful 4 | . 4 . . Failed 1 | . 1 . . Catastrophic . | . . . . Database Lockouts . | . . . . Manual . | . . . . Terminals 5 | . 5 . . Fabricators . | . . . . Repair Stations . | . . . . Recycling Units . | . . . . Scanalyzers . | . . . . Garrison Access . | . . . . Terminal Hacks 4 | . 4 . . Robot Analysis 1 | . 1 . . Prototype ID Bank 1 | . 1 . . Emergency Access Points 1 | . 1 . . Zone Layout 1 | . 1 . . Fabricator Hacks . | . . . . Repair Station Hacks . | . . . . Recycling Unit Hacks . | . . . . Scanalyzer . | . . . . Garrison Access Hacks . | . . . . Unauthorized Hacks . | . . . . Terminals . | . . . . Fabricators . | . . . . Repair Stations . | . . . . Recycling Units . | . . . . Scanalyzers . | . . . . Garrison Access . | . . . . Data Cores Recovered 1 | . 1 . . Used . | . . . . Hacking Detections 1 | . 1 . . Full Trace Events 1 | . 1 . . Feedback Events . | . . . . Feedback Blocked . | . . . . Robot Schematics Acquired . | . . . . Robots Built . | . . . . Authchips . | . . . . Time . | . . . . Total Robot Build Rating . | . . . . Part Schematics Acquired . | . . . . Parts Built . | . . . . Authchips . | . . . . Time . | . . . . Total Part Build Rating . | . . . . Parts Repaired . | . . . . Time . | . . . . Parts Recycled . | . . . . Recycled Matter . | . . . . Retrieved Matter . | . . . . Retrieved Components . | . . . . Parts Scanalyzed . | . . . . Part Schematics Acquired . | . . . . Parts Damaged . | . . . . Bothacking | -11 -10 -10 -9 ------------ Run | Yrd Mat Min Mat Used RIF Installer . | . . . . Robots Hacked . | . . . . Non-combat . | . . . . Combat . | . . . . Robot Hacks Applied . | . . . . Relay Couplers Released . | . . . . Fabnet Peak Effective % . | . . . . Robots Rewired . | . . . . Allies Hacked . | . . . . Hacks Repelled . | . . . . Allies | -11 -10 -10 -9 -------- Run | Yrd Mat Min Mat Total Allies 1 | . . 1 . Largest Group 1 | . . 1 . Highest-Rated Group 31 | . . 31 . Highest-Rated Ally 31 | . . 31 . Total Orders . | . . . . Ally Attacks 4 | . . 4 . Total Damage 64 | . . 64 . Kills 1 | . . 1 . Allies Corrupted . | . . . . Allies Melted . | . . . . Intel | -11 -10 -10 -9 ------- Run | Yrd Mat Min Mat Active Infowar (turns) 412 | . 292 67 53 Structural 412 | . 292 67 53 Robot Analysis Total 1 | . 1 . . Derelict Logs Recovered . | . . . . Drone Launches . | . . . . Drone Recoveries . | . . . . Exploration | -11 -10 -10 -9 ------------- Run | Yrd Mat Min Mat Turns Passed 718 | 150 448 67 53 Spaces Moved 482 | 92 266 69 55 Core 1 | 1 . . . Treads . | . . . . Legs . | . . . . Wheels 481 | 91 266 69 55 Hover . | . . . . Flight . | . . . . Fastest Speed 50 | 50 80 95 95 Average Speed 89 | 79 91 95 95 Slowest Speed 105 | 80 105 95 95 Overloaded Moves . | . . . . Propulsion Burnouts . | . . . . Robots Hopped . | . . . . Potential Cave-ins . | . . . . Cave-ins Triggered . | . . . . Exploration Rate (%) 20 | 4 43 24 10 Regions Visited 3 Branch Regions 1 Pre-discovered Areas . | . . . . Known Exits Taken . | . . . . Unknown Exits Taken 3 | 1 1 1 . Scrap Searched . | . . . . Spaces Dug 1 | . 1 . . Terrain Destroyed 4 | . 4 . . Melee . | . . . . Projectile 4 | . 4 . . AOE . | . . . . Terrain Rammed . | . . . . Walls Destroyed . | . . . . Machines Disabled . | . . . . Actions | -11 -10 -10 -9 --------- Run | Yrd Mat Min Mat Total 660 | 130 405 70 55 Wait 83 | 4 78 1 . Move 479 | 91 265 68 55 Hop . | . . . . Pick Up 11 | 8 2 1 . Fast Attach 9 | 6 3 . . Attach . | . . . . Detach 1 | . 1 . . Swap 7 | . 7 . . Drop 5 | 1 4 . . Fire 65 | 20 45 . . Melee . | . . . . Ram . | . . . . Kick . | . . . . Crush . | . . . . Escape Stasis . | . . . . Rewire . | . . . . Trap . | . . . . Miscellaneous . | . . . . Route ------- -11/Scrapyard -10/Materials (discovered 2 exits: [*Min x2]) -10/Mines -9/Materials History --------- Turn | Location | Event 8 | -11/Scrapyard | Discovered new exit (range 15) 151 | -11/Scrapyard | Entered Materials 285 | -10/Materials | Discovered new exit (range 15) 303 | -10/Materials | Build established: Mutant 573 | -10/Materials | Discovered new exit (range 12) 599 | -10/Materials | Entered Mines 600 | -10/Mines | Met a Derelict testing a Signal Generator 604 | -10/Mines | Found Signal Generator 652 | -10/Mines | Discovered new exit (range 16) 666 | -10/Mines | Entered Materials 666 | -9/Materials | Evolved 2 slots: Propulsion x1, Utility x1 719 | -9/Materials | Self-destructed Last Messages --------------- LOCATION=UNKNOWN GOAL=ESCAPE 00600_ A derelict emerges from the shadows: "Quiet! I'm testing a new device we can use to divert those annoying Unaware when we need to." 00600_ T-07 Excavator is excavating. 00604_ Signal Generator broadcasts a burst of procedurally generated transmissions. 00604_ ALERT: Intercepting significant anomalous signal. Dispatching assault force. 00604_ Acquired Signal Generator. 00605_ A9-9V2(g): "Okay, I guess that means it works. Now let's get out of here!" 00607_ T-07 Excavator is excavating. 00652_ EXIT=FOUND PARAMETERS=PROPULSION+1,UTILITY+1 LOCATION=UNKNOWN GOAL=ESCAPE 00703_ K-01 Serf collects debris. Map ----- +----------------------------------------------------+ | ?????????????????????????????????????????????????? | | ?????????????????????????????????????????????????? | | ?????????????????????????????????????????????????? | | ?????????????????????????????????????????????????? | | ?????????????????????????????????? ???????????? | | ??????????????????????????????????#+##???????????? | | ????????????????????????????????### ## ??????????? | | ????????????????????????????????### ## ??????????? | | ???????????????????????????????? # ??????????? | | ????????????????????????????????? + ??????????? | | ???????????????????????????????? # ??????????? | | ????????????????????????????????## # ??????????? | | ????????????????????????????????## # ??????????? | | ?????????? ####################### # ??????????? | | ????????## ####################### # ??????????? | | ????????## ##??????????? | | ????????## ##??????????? | | ????????## ##??????????? | | ????????## ???? #######+####+#+### ##??????????? | | ??????????????? ##### # # ##??????????? | | ???????????????????## # """" # #########???? | | ???????????????????## # """" # #########?## | | ???????????????????##""" # """" # ##?### | | ???????????????????##""" # # ##?## | | ???????????????????##""" # # ##?## | | ???????????????????## @############### ##?## | | ???????????????????##""" ############### ##?## | | ???????????????????##""" ##???????????## ##?## | | ???????????????????##""" ##???????????## ##?## | | ??????????????????? + ##???????????## ##?## | | ???????????????????## ##???????????## ##?## | | ???????????????????#########???????????## ##?## | | ???????????????????#########???????????## ##?## | | ???????????????????????????????????????## ##?## | | ???????????????????????????????????????## ##### | | ???????????????????????????????????????## ###### | | ???????????????????????????????????????## | | ???????????????????????????????????????## | | ???????????????????????????????????????## | | ???????????????????????????????????????########### | | ???????????????????????????????????????########### | | ?????????????????????????????????????????????????? | | ?????????????????????????????????????????????????? | | | | | | | | | | | | | | | +----------------------------------------------------+ Best States ------------- Heat Dissipation 28 Energy Generation 10 Energy Capacity 125 Matter Stores 300 Matter Capacity 300 Sight Range 16 Terrain Scan Density 10 Evasion (%) 44 Item Schematics ----------------- None Robot Schematics ------------------ None Fabricated ------------ Nothing Repaired ---------- Nothing Alien Tech Used ----------------- None Achievements -------------- None Challenges ------------ None Game ------ Seed PointPlexusMediator Manual? 0 Play Time 00:05:37 Cumulative 66.6 hours Start 2025.09.15 @ 01:00:16 End 2025.09.15 @ 14:21:50 Sessions 1 Manual Loads 0 Difficulty Rogue Special Mode None Game No. 139 Rogue 137 Adventurer 0 Explorer 2 Win Type - Total 0 Types 0/0/0/0/0/0/0/0/0/0 Lore% 27 Gallery% 42 Achievement% 39 Wizard Run 0 Options --------- Layout 2 ASCII 0 Keyboard 1 Movement Arrows Keybinds 0 Fullscreen 1 Font 28/SmallcapsGlow Map View 50x49 Zoom Use 0% Tactical HUD 1 Map Filters NONE Filters NONE Steam 1 RUN: 4ab9823c-f0aa-4204-89b1-2baa2dfb47db